fUST/lending_fUST_20250302
["ID","MTS","AMOUNT","RATE_DAILY","PERIOD"]
[354954991,1740845453163,-578.59,0.00027671,2]
[354954992,1740845453173,-151.0,0.00027671,7]
[354954993,1740845453183,-500.0,0.00027671,2]
[354954994,1740845453193,-151.0,0.00027671,7]
[354954995,1740845453203,-160.70743,0.00027671,7]
[354954996,1740845453212,-1517.25,0.00027671,2]
[354954997,1740845453222,-500.0,0.00027671,2]
[354954998,1740845453231,-151.0,0.00027671,7]
[354954999,1740845453241,-151.0,0.00027671,7]
[354955000,1740845453251,-500.0,0.00027671,2]
[354955001,1740845453260,-500.0,0.00027671,2]
[354955002,1740845453269,-500.0,0.00027671,2]
[354955003,1740845453279,-500.0,0.00027671,2]
[354955004,1740845453289,-2094.38,0.00027671,2]
[354955005,1740845453298,-575.46,0.00027671,2]
[354955006,1740845453308,-296.691406,0.00027671,7]
[354955007,1740845453318,-296.691406,0.00027671,7]
[354955008,1740845453328,-296.691406,0.00027671,7]
[354955009,1740845453338,-500.0,0.00027671,2]
[354955010,1740845453348,-500.0,0.00027671,2]
[354955011,1740845453358,-500.0,0.00027671,2]
[354955012,1740845453368,-500.0,0.00027671,2]
[354955013,1740845453377,-500.0,0.00027671,2]
[354955014,1740845453388,-264.858168,0.00027671,7]
[354955015,1740845453397,-264.858168,0.00027671,7]
[354955016,1740845453407,-500.0,0.00027671,2]
[354955017,1740845453417,-500.0,0.00027671,2]
[354955018,1740845453426,-151.0,0.00027671,7]
[354955019,1740845453437,-151.0,0.00027671,7]
[354955020,1740845453452,-500.0,0.00027671,2]
[354955021,1740845453462,-264.858168,0.00027671,7]
[354955022,1740845453472,-2170.83,0.00027671,2]
[354955023,1740845453481,-264.858168,0.00027671,7]
[354955024,1740845453491,-500.0,0.00027671,2]
[354955025,1740845453501,-531.7,0.00027671,2]
[354955026,1740845453510,-310.569595,0.00027671,7]
[354955027,1740845453520,-310.569595,0.00027671,7]
[354955028,1740845453530,-502.85480777,0.00027671,2]
[354955029,1740845453540,-310.569595,0.00027671,7]
[354955030,1740845453550,-500.0,0.00027671,2]
[354955031,1740845453560,-514.97808468,0.00027671,2]
[354955032,1740845453570,-310.569595,0.00027671,7]
[354955033,1740845453579,-252.289034,0.00027671,7]
[354955034,1740845453590,-503.4512173,0.00027671,2]
[354955035,1740845453600,-2252.21,0.00027671,2]
[354955036,1740845453610,-310.569595,0.00027671,7]
[354955037,1740845453620,-252.289034,0.00027671,7]
[354955038,1740845453630,-310.569595,0.00027671,7]
[354955039,1740845453640,-1741.22,0.00027671,2]
[354955040,1740845453650,-591.88,0.00027671,2]
[354955041,1740845453660,-826.09,0.00027671,2]
[354955042,1740845453670,-590.91949038,0.00027671,2]
[354955043,1740845453679,-252.289034,0.00027671,7]
[354955044,1740845453691,-252.289034,0.00027671,7]
[354955045,1740845453701,-664.91,0.00027671,2]
[354955046,1740845453711,-500.0,0.00027671,2]
[354955047,1740845453722,-502.03,0.00027671,2]
[354955048,1740845453732,-680.92,0.00027671,2]
[354955049,1740845453742,-500.0,0.00027671,2]
[354955050,1740845453752,-500.0,0.00027671,2]
[354955051,1740845453762,-500.0,0.00027671,2]
[354955052,1740845453772,-1744.53,0.00027671,2]
[354955053,1740845453786,-500.0,0.00027671,2]
[354955054,1740845453796,-500.0,0.00027671,2]
[354955055,1740845453806,-500.0,0.00027671,2]
[354955056,1740845453817,-500.0,0.00027671,2]
[354955057,1740845453827,-500.0,0.00027671,2]
[354955058,1740845453837,-160.0,0.00027671,7]
[354955059,1740845453847,-461.66681,0.00027671,7]
[354955060,1740845453859,-461.66681,0.00027671,7]
[354955061,1740845453875,-500.0,0.00027671,2]
[354955062,1740845453886,-193.503648,0.00027671,7]
[354955063,1740845453897,-193.503648,0.00027671,7]
[354955064,1740845453907,-500.0,0.00027671,2]
[354955065,1740845453917,-461.66681,0.00027671,7]
[354955066,1740845453927,-461.66681,0.00027671,7]
[354955067,1740845453937,-500.0,0.00027671,2]
[354955068,1740845453946,-193.503648,0.00027671,7]
[354955069,1740845453956,-193.503648,0.00027671,7]
[354955070,1740845453967,-500.0,0.00027671,2]
[354955071,1740845453977,-500.0,0.00027671,2]
[354955072,1740845453986,-685.6,0.00027671,2]
[354955073,1740845453997,-209.54869711,0.00027671,2]
[354955074,1740845454007,-500.0,0.00027671,2]
[354955075,1740845454017,-500.0,0.00027671,2]
[354955076,1740845454027,-1572.62,0.00027671,2]
[354955077,1740845454037,-500.0,0.00027671,2]
[354955078,1740845454047,-500.0,0.00027671,2]
[354955079,1740845454057,-500.0,0.00027671,2]
[354955080,1740845454066,-500.0,0.00027671,2]
[354955081,1740845454076,-500.0,0.00027671,2]
[354955082,1740845454085,-500.0,0.00027671,2]
[354955083,1740845454095,-500.0,0.00027671,2]
[354955084,1740845454104,-500.0,0.00027671,2]
[354955085,1740845454114,-500.0,0.00027671,2]
[354955086,1740845454124,-1531.22,0.00027671,2]
[354955087,1740845454134,-500.0,0.00027671,2]
[354955088,1740845454144,-500.0,0.00027671,2]
[354955089,1740845454154,-500.0,0.00027671,2]
[354955090,1740845454163,-3254.62,0.00027671,2]
[354955091,1740845454173,-500.0,0.00027671,2]
[354955092,1740845454183,-500.0,0.00027671,2]
[354955093,1740845454192,-158.079616,0.00027671,7]
[354955094,1740845454202,-500.0,0.00027671,2]
[354955095,1740845454212,-500.0,0.00027671,2]
[354955096,1740845454221,-500.0,0.00027671,2]
[354955097,1740845454231,-500.0,0.00027671,2]
[354955098,1740845454241,-1370.24,0.00027671,2]
[354955099,1740845454251,-500.0,0.00027671,2]
[354955100,1740845454261,-611.48,0.00027671,2]
[354955101,1740845454270,-509.94,0.00027671,2]
[354955102,1740845454280,-964.9,0.00027671,2]
[354955103,1740845454290,-500.0,0.00027671,2]
[354955104,1740845454300,-7197.11,0.00027671,2]
[354955105,1740845454309,-165.922297,0.00027671,7]
[354955106,1740845454319,-165.922297,0.00027671,7]
[354955107,1740845454328,-500.0,0.00027671,2]
[354955108,1740845454339,-1123.34,0.00027671,2]
[354955109,1740845454348,-600.56,0.00027671,2]
[354955110,1740845454358,-195.1431173,0.00027671,2]
[354955111,1740845454368,-500.0,0.00027671,2]
[354955112,1740845454378,-500.0,0.00027671,2]
[354955113,1740845454388,-500.0,0.00027671,2]
[354955114,1740845454398,-500.0,0.00027671,2]
[354955115,1740845454408,-500.0,0.00027671,2]
[354955116,1740845454417,-151.0,0.00027671,7]
[354955117,1740845454427,-500.0,0.00027671,2]
[354955118,1740845454438,-500.0,0.00027671,2]
[354955119,1740845454448,-649.22,0.00027671,2]
[354955120,1740845454460,-151.0,0.00027671,7]
[354955121,1740845454470,-165.922297,0.00027671,7]
[354955122,1740845454480,-151.0,0.00027671,7]
[354955123,1740845454491,-500.0,0.00027671,2]
[354955124,1740845454501,-710.98,0.00027671,2]
[354955125,1740845454511,-165.922297,0.00027671,7]
[354955126,1740845454521,-500.0,0.00027671,2]
[354955127,1740845454531,-539.97,0.00027671,2]
[354955128,1740845454542,-500.0,0.00027671,2]
[354955129,1740845454552,-563.87,0.00027671,2]
[354955130,1740845454562,-3648.85,0.00027671,2]
[354955131,1740845454572,-1298.35,0.00027671,2]
[354955132,1740845454582,-151.0,0.00027671,7]
[354955133,1740845454591,-500.0,0.00027671,2]
[354955134,1740845454601,-500.0,0.00027671,2]
[354955135,1740845454612,-151.0,0.00027671,7]
[354955136,1740845454621,-151.0,0.00027671,7]
[354955137,1740845454632,-500.0,0.00027671,2]
[354955138,1740845454642,-607.48,0.00027671,2]
[354955139,1740845454652,-1508.37,0.00027671,2]
[354955140,1740845454662,-500.0,0.00027671,2]
[354955141,1740845454672,-500.0,0.00027671,2]
[354955142,1740845454682,-500.0,0.00027671,2]
[354955143,1740845454693,-500.0,0.00027671,2]
[354955144,1740845454703,-261.433308,0.00027671,7]
[354955145,1740845454714,-151.0,0.00027671,7]
[354955146,1740845454724,-261.433308,0.00027671,7]
[354955147,1740845454734,-261.433308,0.00027671,7]
[354955148,1740845454745,-151.0,0.00027671,7]
[354955149,1740845454755,-500.0,0.00027671,2]
[354955150,1740845454765,-544.28,0.00027671,2]
[354955151,1740845454775,-261.433308,0.00027671,7]
[354955152,1740845454786,-500.0,0.00027671,2]
[354955153,1740845454796,-261.433308,0.00027671,7]
[354955154,1740845454806,-500.0,0.00027671,2]
[354955155,1740845454816,-151.0,0.00027671,7]
[354955156,1740845454826,-151.0,0.00027671,7]
[354955157,1740845454836,-261.433308,0.00027671,7]
[354955158,1740845454846,-151.0,0.00027671,7]
[354955159,1740845454858,-500.0,0.00027671,2]
[354955160,1740845454870,-500.0,0.00027671,2]
[354955161,1740845454881,-500.0,0.00027671,2]
[354955162,1740845454891,-500.0,0.00027671,2]
[354955163,1740845454903,-2428.02,0.00027671,2]
[354955164,1740845454913,-500.0,0.00027671,2]
[354955165,1740845454923,-500.0,0.00027671,2]
[354955166,1740845454933,-10399.1,0.00027671,2]
[354955167,1740845454945,-500.0,0.00027671,2]
[354955168,1740845454956,-500.0,0.00027671,2]
[354955169,1740845454966,-503.13327549,0.00027671,2]
[354955170,1740845454976,-500.0,0.00027671,2]
[354955171,1740845454986,-500.0,0.00027671,2]
[354955172,1740845454996,-2276.78,0.00027671,2]
[354955173,1740845455007,-775.3,0.00027671,2]
[354955174,1740845455018,-723.15,0.00027671,2]
[354955175,1740845455028,-3370.6,0.00027671,2]
[354955176,1740845455038,-1321.62,0.00027671,2]
[354955177,1740845455048,-1750.68,0.00027671,2]
[354955178,1740845455059,-500.0,0.00027671,2]
[354955179,1740845455069,-762.75,0.00027671,2]
[354955180,1740845455080,-500.0,0.00027671,2]
[354955181,1740845455090,-989.74,0.00027671,2]
[354955182,1740845455100,-500.0,0.00027671,2]
[354955183,1740845455111,-500.0,0.00027671,2]
[354955184,1740845455121,-17096.48,0.00027671,2]
[354955185,1740845455132,-500.0,0.00027671,2]
[354955186,1740845455142,-504.05068478,0.00027671,2]
[354955187,1740845455152,-2503.96,0.00027671,2]
[354955188,1740845455163,-2157.47,0.00027671,2]
[354955189,1740845455173,-675.89,0.00027671,2]
[354955190,1740845455184,-556.41649764,0.00027671,2]
[354955191,1740845455195,-504.06,0.00027671,2]
[354955192,1740845455205,-500.0,0.00027671,2]
[354955193,1740845455215,-500.0,0.00027671,2]
[354955194,1740845455225,-500.0,0.00027671,2]
[354955195,1740845455235,-2911.22,0.00027671,2]
[354955196,1740845455245,-500.0,0.00027671,2]
[354955197,1740845455256,-151.0,0.00027671,7]
[354955198,1740845455266,-151.0,0.00027671,7]
[354955199,1740845455276,-225456.27,0.00027671,2]
[354955200,1740845455286,-151.0,0.00027671,7]
[354955201,1740845455296,-500.0,0.00027671,2]
[354955202,1740845455307,-500.0,0.00027671,2]
[354955203,1740845455318,-173.185072,0.00027671,7]
[354955204,1740845455328,-173.185072,0.00027671,7]
[354955205,1740845455337,-173.185072,0.00027671,7]
[354955206,1740845455347,-631.21,0.00027671,2]
[354955207,1740845455357,-500.0,0.00027671,2]
[354955208,1740845455368,-500.0,0.00027671,2]
[354955209,1740845455379,-173.185072,0.00027671,7]
[354955210,1740845455388,-500.0,0.00027671,2]
[354955211,1740845455398,-173.185072,0.00027671,7]
[354955212,1740845455408,-173.185072,0.00027671,7]
[354955213,1740845455418,-151.0,0.00027671,7]
[354955214,1740845455428,-151.0,0.00027671,7]
[354955215,1740845455438,-151.0,0.00027671,7]
[354955216,1740845455448,-9650.55,0.00027671,2]
[354955217,1740845455459,-500.0,0.00027671,2]
[354955218,1740845455469,-500.0,0.00027671,2]
[354955219,1740845455479,-500.0,0.00027671,2]
[354955220,1740845455490,-1303.18,0.00027671,5]
[354955221,1740845455500,-500.0,0.00027671,2]
[354955222,1740845455512,-699.03,0.00027671,2]
[354955223,1740845455522,-151.0,0.00027671,7]
[354955224,1740845455533,-510.24,0.00027671,2]
[354955225,1740845455543,-1183.5,0.00027671,2]
[354955226,1740845455552,-500.0,0.00027671,2]
[354955227,1740845455562,-199.00386,0.00027671,7]
[354955228,1740845455572,-151.0,0.00027671,7]
[354955229,1740845455583,-4420.81,0.00027671,2]
[354955230,1740845455593,-151.0,0.00027671,7]
[354955231,1740845455602,-500.0,0.00027671,2]
[354955232,1740845455612,-921.23,0.00027671,2]
[354955233,1740845455623,-1327.23,0.00027671,2]
[354955234,1740845455633,-500.0,0.00027671,2]
[354955235,1740845455644,-1581.37,0.00027671,2]
[354955236,1740845455654,-1506.63,0.00027671,2]
[354955237,1740845455665,-151.0,0.00027671,7]
[354955238,1740845455674,-557.86,0.00027671,2]
[354955239,1740845455685,-151.0,0.00027671,7]
[354955240,1740845455696,-1069.69,0.00027671,2]
[354955241,1740845455707,-1286.789308,0.00027671,7]
[354955242,1740845455717,-151.0,0.00027671,7]
[354955243,1740845455727,-5083.88,0.00027671,2]
[354955244,1740845455738,-1286.789308,0.00027671,7]
[354955245,1740845455748,-768.55,0.00027671,2]
[354955246,1740845455758,-1286.789308,0.00027671,7]
[354955247,1740845455769,-615.80236531,0.00027671,2]
[354955248,1740845455779,-1462.35,0.00027671,2]
[354955249,1740845455790,-2348.6,0.00027671,2]
[354955250,1740845455800,-1286.789308,0.00027671,7]
[354955251,1740845455810,-1286.789308,0.00027671,7]
[354955252,1740845455821,-500.0,0.00027671,2]
[354955253,1740845455831,-1286.789308,0.00027671,7]
[354955254,1740845455842,-2044.68,0.00027671,2]
[354955255,1740845455852,-533.35,0.00027671,2]
[354955256,1740845455865,-275.52810806,0.00027671,2]
[354955257,1740845455875,-257.09457532,0.00027671,2]
[354955258,1740845455886,-500.0,0.00027671,2]
[354955259,1740845455896,-500.0,0.00027671,2]
[354955260,1740845455907,-5976.45,0.00027671,2]
[354955261,1740845455918,-500.0,0.00027671,2]
[354955262,1740845455928,-500.0,0.00027671,2]
[354955263,1740845455940,-2355.23,0.00027671,2]
[354955264,1740845455950,-780.39,0.00027671,2]
[354955265,1740845455960,-510.39520217,0.00027671,2]
[354955266,1740845455970,-500.0,0.00027671,2]
[354955267,1740845455981,-247.390395,0.00027671,7]
[354955268,1740845455992,-1113.59,0.00027671,2]
[354955269,1740845456002,-12948.86,0.00027671,2]
[354955270,1740845456013,-1854.03,0.00027671,2]
[354955271,1740845456023,-500.0,0.00027671,2]
[354955272,1740845456034,-500.0,0.00027671,2]
[354955273,1740845456044,-500.0,0.00027671,2]
[354955274,1740845456055,-500.0,0.00027671,2]
[354955275,1740845456065,-535.9566018,0.00027671,2]
[354955276,1740845456075,-645.91,0.00027671,2]
[354955277,1740845456086,-500.0,0.00027671,2]
[354955278,1740845456096,-500.0,0.00027671,2]
[354955279,1740845456106,-500.0,0.00027671,2]
[354955280,1740845456117,-854.47,0.00027671,2]
[354955281,1740845456127,-549.93,0.00027671,2]
[354955282,1740845456138,-5672.75,0.00027671,2]
[354955283,1740845456148,-151.0,0.00027671,7]
[354955284,1740845456159,-45482.56,0.00027671,2]
[354955285,1740845456170,-1730.18,0.00027671,2]
[354955286,1740845456180,-151.0,0.00027671,7]
[354955287,1740845456191,-500.0,0.00027671,2]
[354955288,1740845456202,-1333.51,0.00027671,2]
[354955289,1740845456212,-500.0,0.00027671,2]
[354955290,1740845456223,-500.0,0.00027671,2]
[354955291,1740845456233,-780.68,0.00027671,2]
[354955292,1740845456244,-151.0,0.00027671,7]
[354955293,1740845456254,-500.0,0.00027671,2]
[354955294,1740845456265,-3090.36,0.00027671,2]
[354955295,1740845456275,-151.0,0.00027671,7]
[354955296,1740845456285,-151.0,0.00027671,7]
[354955297,1740845456295,-551.87205177,0.00027671,2]
[354955298,1740845456307,-151.0,0.00027671,7]
[354955299,1740845456317,-2015.18,0.00027671,2]
[354955300,1740845456328,-500.0,0.00027671,2]
[354955301,1740845456338,-151.0,0.00027671,7]
[354955302,1740845456349,-500.0,0.00027671,2]
[354955303,1740845456359,-151.0,0.00027671,7]
[354955304,1740845456370,-504.51657921,0.00027671,2]
[354955305,1740845456380,-509.43753605,0.00027671,2]
[354955306,1740845456390,-500.0,0.00027671,2]
[354955307,1740845456401,-500.0,0.00027671,2]
[354955308,1740845456411,-959.44,0.00027671,2]
[354955309,1740845456421,-820.13,0.00027671,2]
[354955310,1740845456431,-500.0,0.00027671,2]
[354955311,1740845456442,-500.0,0.00027671,2]
[354955312,1740845456452,-539.70988336,0.00027671,2]
[354955313,1740845456463,-500.0,0.00027671,2]
[354955314,1740845456473,-500.0,0.00027671,2]
[354955315,1740845456484,-1053.09,0.00027671,2]
[354955316,1740845456495,-500.0,0.00027671,2]
[354955317,1740845456505,-500.0,0.00027671,2]
[354955318,1740845456515,-502.22558594,0.00027671,2]
[354955319,1740845456525,-3033.51,0.00027671,2]
[354955320,1740845456536,-500.0,0.00027671,2]
[354955321,1740845456546,-3413.39,0.00027671,2]
[354955322,1740845456556,-403.85763096,0.00027671,2]
[354955323,1740845456567,-500.0,0.00027671,2]
[354955324,1740845456577,-1956.94,0.00027671,2]
[354955325,1740845456588,-861.63,0.00027671,2]
[354955326,1740845456598,-1430.2,0.00027671,2]
[354955327,1740845456608,-470.39141204,0.00027671,2]
[354955328,1740845456619,-500.0,0.00027671,2]
[354955329,1740845456630,-8129.77,0.00027671,2]
[354955330,1740845456641,-500.0,0.00027671,2]
[354955331,1740845456651,-500.0,0.00027671,2]
[354955332,1740845456662,-1043.22,0.00027671,2]
[354955333,1740845456673,-3893.91,0.00027671,2]
[354955334,1740845456683,-1959.28,0.00027671,2]
[354955335,1740845456694,-519.4773465,0.00027671,2]
[354955336,1740845456704,-530.334449,0.00027671,7]
[354955337,1740845456715,-2415.63,0.00027671,2]
[354955338,1740845456969,-530.334449,0.00027671,7]
[354955339,1740845456979,-500.0,0.00027671,2]
[354955340,1740845456990,-13931.51,0.00027671,2]
[354955341,1740845457000,-530.334449,0.00027671,7]
[354955342,1740845457010,-530.334449,0.00027671,7]
[354955343,1740845457020,-500.0,0.00027671,2]
[354955344,1740845457030,-500.0,0.00027671,2]
[354955345,1740845457040,-500.0,0.00027671,2]
[354955346,1740845457050,-500.0,0.00027671,2]
[354955347,1740845457060,-166.565658,0.00027671,7]
[354955348,1740845457070,-500.0,0.00027671,2]
[354955349,1740845457080,-530.334449,0.00027671,7]
[354955350,1740845457090,-500.0,0.00027671,2]
[354955351,1740845457099,-530.334449,0.00027671,7]
[354955352,1740845457110,-500.0,0.00027671,2]
[354955353,1740845457120,-166.565658,0.00027671,7]
[354955354,1740845457130,-530.334449,0.00027671,7]
[354955355,1740845457139,-500.0,0.00027671,2]
[354955356,1740845457149,-530.334449,0.00027671,7]
[354955357,1740845457159,-1759.12,0.00027671,2]
[354955358,1740845457169,-166.565658,0.00027671,7]
[354955359,1740845457179,-166.565658,0.00027671,7]
[354955360,1740845457190,-500.0,0.00027671,2]
[354955361,1740845457200,-500.0,0.00027671,2]
[354955362,1740845457210,-2492.29,0.00027671,2]
[354955363,1740845457220,-166.565658,0.00027671,7]
[354955364,1740845457230,-166.565658,0.00027671,7]
[354955365,1740845457240,-166.565658,0.00027671,7]
[354955366,1740845457250,-611.54,0.00027671,2]
[354955367,1740845457260,-500.0,0.00027671,2]
[354955368,1740845457270,-166.565658,0.00027671,7]
[354955369,1740845457279,-500.0,0.00027671,2]
[354955370,1740845457289,-500.0,0.00027671,2]
[354955371,1740845457299,-500.0,0.00027671,2]
[354955372,1740845457309,-151.0,0.00027671,7]
[354955373,1740845457320,-500.0,0.00027671,2]
[354955374,1740845457330,-500.0,0.00027671,2]
[354955375,1740845457340,-500.0,0.00027671,2]
[354955376,1740845457350,-659.83,0.00027671,2]
[354955377,1740845457360,-500.0,0.00027671,2]
[354955378,1740845457369,-500.0,0.00027671,2]
[354955379,1740845457379,-561.47,0.00027671,2]
[354955380,1740845457389,-3917.28,0.00027671,2]
[354955381,1740845457399,-500.0,0.00027671,2]
[354955382,1740845457409,-500.0,0.00027673,5]
[354955383,1740845457420,-500.0,0.00027673,5]
[354955384,1740845457430,-506.29649749,0.00027691,2]
[354955385,1740845457441,-94844.89332819,0.000277,16]
[354955386,1740845457451,-151.0,0.000277,7]
[354955387,1740845457461,-2650.36381101,0.000277,2]
[354955388,1740845457471,-151.0,0.000277,7]
[354955389,1740845457481,-789.421167,0.000277,7]
[354955390,1740845457491,-789.421167,0.000277,7]
[354955391,1740845457501,-847.111979,0.000277,7]
[354955392,1740845457511,-151.0,0.000277,7]
[354955393,1740845457521,-264.858168,0.000277,7]
[354955394,1740845457531,-151.0,0.000277,7]
[354955395,1740845457541,-264.858168,0.000277,7]
[354955396,1740845457551,-252.289034,0.000277,7]
[354955397,1740845457560,-252.289034,0.000277,7]
[354955398,1740845457571,-461.66681,0.000277,7]
[354955399,1740845457581,-193.503648,0.000277,7]
[354955400,1740845457591,-461.66681,0.000277,7]
[354955401,1740845457602,-193.503648,0.000277,7]
[354955402,1740845457612,-165.922297,0.000277,7]
[354955403,1740845457622,-151.0,0.000277,7]
[354955404,1740845457632,-165.922297,0.000277,7]
[354955405,1740845457642,-261.433308,0.000277,7]
[354955406,1740845457652,-261.433308,0.000277,7]
[354955407,1740845457662,-1000.0,0.000277,28]
[354955408,1740845457672,-1000.0,0.000277,28]
[354955409,1740845457682,-1000.0,0.000277,28]
[354955410,1740845457693,-1000.0,0.000277,28]
[354955411,1740845457703,-1000.0,0.000277,28]
[354955412,1740845457713,-1000.0,0.000277,28]
[354955413,1740845457723,-151.0,0.000277,7]
[354955414,1740845457733,-173.185072,0.000277,7]
[354955415,1740845457743,-173.185072,0.000277,7]
[354955416,1740845457753,-151.0,0.000277,7]
[354955417,1740845457764,-151.0,0.000277,7]
[354955418,1740845457775,-1286.789308,0.000277,7]
[354955419,1740845457785,-1286.789308,0.000277,7]
[354955420,1740845457795,-151.0,0.000277,7]
[354955421,1740845457805,-1089.13,0.00027735,2]
[354955422,1740845457815,-4000.0,0.00027743,2]
[354955423,1740845457825,-151.0,0.00027743,7]
[354955424,1740845457836,-530.334449,0.00027743,7]
[354955425,1740845457846,-530.334449,0.00027743,7]
[354955426,1740845457856,-166.565658,0.00027743,7]
[354955427,1740845457870,-166.565658,0.00027743,7]
[354955428,1740845457880,-4000.0,0.00027744,2]
[354955429,1740845457890,-159.531561,0.00027744,7]
[354955430,1740845457900,-159.531561,0.00027744,7]
[354955431,1740845457912,-151.0,0.00027744,7]
[354955432,1740845457922,-834.403025,0.00027744,7]
[354955433,1740845457932,-834.403025,0.00027744,7]
[354955434,1740845457943,-151.0,0.00027744,7]
[354955435,1740845457952,-151.0,0.00027744,7]
[354955436,1740845457961,-847.111979,0.00027744,7]
[354955437,1740845457972,-151.0,0.00027744,7]
[354955438,1740845457982,-296.691406,0.00027744,7]
[354955439,1740845457992,-296.691406,0.00027744,7]
[354955440,1740845458002,-264.858168,0.00027744,7]
[354955441,1740845458012,-264.858168,0.00027744,7]
[354955442,1740845458021,-310.569595,0.00027744,7]
[354955443,1740845458032,-252.289034,0.00027744,7]
[354955444,1740845458042,-310.569595,0.00027744,7]
[354955445,1740845458053,-252.289034,0.00027744,7]
[354955446,1740845458063,-461.66681,0.00027744,7]
[354955447,1740845458074,-193.503648,0.00027744,7]
[354955448,1740845458085,-461.66681,0.00027744,7]
[354955449,1740845458095,-193.503648,0.00027744,7]
[354955450,1740845458106,-165.922297,0.00027744,7]
[354955451,1740845458116,-151.0,0.00027744,7]
[354955452,1740845458128,-165.922297,0.00027744,7]
[354955453,1740845458138,-261.433308,0.00027744,7]
[354955454,1740845458148,-261.433308,0.00027744,7]
[354955455,1740845458158,-173.185072,0.00027744,7]
[354955456,1740845458168,-173.185072,0.00027744,7]
[354955457,1740845458178,-151.0,0.00027744,7]
[354955458,1740845458189,-284.0,0.00027744,7]
[354955459,1740845458199,-1286.789308,0.00027744,7]
[354955460,1740845458210,-1286.789308,0.00027744,7]
[354955461,1740845458220,-151.0,0.00027744,7]
[354955462,1740845458231,-151.0,0.00027745,7]
[354955463,1740845458241,-151.0,0.00027745,7]
[354955464,1740845458252,-205.42456,0.00027745,7]
[354955465,1740845458262,-151.0,0.00027745,7]
[354955466,1740845458272,-810.715311,0.00027745,2]
[354955467,1740845458282,-810.715311,0.00027745,2]
[354955468,1740845458292,-151.0,0.00027745,7]
[354955469,1740845458303,-151.0,0.00027745,7]
[354955470,1740845458313,-151.0,0.00027745,7]
[354955471,1740845458323,-1089.13,0.00027758,2]
[354955472,1740845458334,-500.0,0.00027758,2]
[354955473,1740845458344,-500.0,0.00027758,2]
[354955474,1740845458355,-500.0,0.00027758,2]
[354955475,1740845458365,-1089.13,0.00027769,2]
[354955476,1740845458376,-1219.18,0.0002777,2]
[354955477,1740845458386,-1089.13,0.0002777,2]
[354955478,1740845458396,-1089.13,0.0002777,2]
[354955479,1740845458406,-260.02,0.0002777,2]
[354955480,1740845458416,-4000.0,0.0002777,2]
[354955481,1740845458432,-500.0,0.0002777,2]
[354955482,1740845458444,-502.95938668,0.0002777,2]
[354955483,1740845458454,-14206.89,0.0002777,2]
[354955484,1740845458465,-406.66655941,0.0002777,2]
[354955485,1740845458475,-1767.99,0.0002777,2]
[354955486,1740845458486,-500.0,0.0002777,2]
[354955487,1740845458495,-621.42163615,0.0002777,2]
[354955488,1740845458505,-500.0,0.0002777,2]
[354955489,1740845458515,-4000.0,0.0002777,2]
[354955490,1740845458525,-4000.0,0.0002777,2]